[Event "Titled Tuesday Blitz January 31 Early 2023"]
[White "Mekhane, Adam"]
[Black "Hasangatin, Ramil"]
[WhiteFideId "36050601"]
[BlackFideId "4122160"]
[WhiteElo "2280"]
[BlackElo "2457"]
[Result "0-1"]
[Round "03"]
[TimeControl "180+2"]
[Date "2023.01.31"]
[WhiteClock "0:00:03"]
[BlackClock "0:00:49"]

1. b3 {[%clk 0:02:59]}  e5 {[%clk 0:02:59]} 2. Bb2 {[%clk 0:02:59]}  Nc6 {[%clk 0:02:59]} 3. e3 {[%clk 0:02:59]}  Nf6 {[%clk 0:02:53]} 4. Nf3 {[%clk 0:02:58]}  Bd6 {[%clk 0:02:45]} 5. Bb5 {[%clk 0:02:56]}  Qe7 {[%clk 0:02:45]} 6. O-O {[%clk 0:02:51]}  e4 {[%clk 0:02:44]} 7. Nd4 {[%clk 0:02:12]}  Nxd4 {[%clk 0:02:42]} 8. Bxd4 {[%clk 0:02:09]}  c6 {[%clk 0:02:41]} 9. Be2 {[%clk 0:02:08]}  Bc7 {[%clk 0:02:37]} 10. f4 {[%clk 0:01:52]}  d5 {[%clk 0:02:35]} 11. c4 {[%clk 0:01:47]}  dxc4 {[%clk 0:02:34]} 12. Bxc4 {[%clk 0:01:43]}  O-O {[%clk 0:02:29]} 13. Qc2 {[%clk 0:01:37]}  Re8 {[%clk 0:02:28]} 14. Nc3 {[%clk 0:01:33]}  Bf5 {[%clk 0:02:19]} 15. Rac1 {[%clk 0:01:25]}  Bb6 {[%clk 0:02:18]} 16. Bxb6 {[%clk 0:01:19]}  axb6 {[%clk 0:02:18]} 17. a4 {[%clk 0:01:19]}  h5 {[%clk 0:02:12]} 18. Ne2 {[%clk 0:01:17]}  Rad8 {[%clk 0:02:10]} 19. Nd4 {[%clk 0:01:18]}  Bc8 {[%clk 0:02:09]} 20. Rce1 {[%clk 0:01:03]}  Rd6 {[%clk 0:01:58]} 21. d3 {[%clk 0:00:56]}  exd3 {[%clk 0:01:38]} 22. Bxd3 {[%clk 0:00:56]}  Red8 {[%clk 0:01:38]} 23. Bf5 {[%clk 0:00:39]}  g6 {[%clk 0:01:32]} 24. Bxc8 {[%clk 0:00:38]}  Rxc8 {[%clk 0:01:33]} 25. Qc3 {[%clk 0:00:37]}  Nd5 {[%clk 0:01:25]} 26. Qd2 {[%clk 0:00:29]}  Re8 {[%clk 0:01:24]} 27. Qf2 {[%clk 0:00:24]}  Qe4 {[%clk 0:01:16]} 28. Qf3 {[%clk 0:00:21]}  Nxe3 {[%clk 0:01:11]} 29. Qxe4 {[%clk 0:00:17]}  Rxe4 {[%clk 0:01:12]} 30. Nc2 {[%clk 0:00:18]}  Rde6 {[%clk 0:01:00]} 31. Nxe3 {[%clk 0:00:14]}  Rxe3 {[%clk 0:01:01]} 32. Kf2 {[%clk 0:00:10]}  Rxb3 {[%clk 0:00:57]} 33. Rxe6 {[%clk 0:00:11]}  fxe6 {[%clk 0:00:58]} 34. Rd1 {[%clk 0:00:12]}  b5 {[%clk 0:00:52]} 35. a5 {[%clk 0:00:10]}  Ra3 {[%clk 0:00:52]} 36. Rd7 {[%clk 0:00:10]}  Rxa5 {[%clk 0:00:51]} 37. Rxb7 {[%clk 0:00:11]}  Ra3 {[%clk 0:00:51]} 38. Rc7 {[%clk 0:00:10]}  Rc3 {[%clk 0:00:51]} 39. Re7 {[%clk 0:00:10]}  b4 {[%clk 0:00:50]} 40. Rxe6 {[%clk 0:00:10]}  Kf7 {[%clk 0:00:51]} 41. Re4 {[%clk 0:00:09]}  c5 {[%clk 0:00:51]} 42. Ke2 {[%clk 0:00:07]}  b3 {[%clk 0:00:50]} 43. Kd2 {[%clk 0:00:02]}  Rc2+ {[%clk 0:00:50]} 44. Kd3 {[%clk 0:00:03]}  c4+ {[%clk 0:00:49]} 45. Kd4 {[%clk 0:00:02]}  b2 {[%clk 0:00:49]} 46. Re1 {[%clk 0:00:03]}  Rc1 {[%clk 0:00:49]} 0-1


[Site "https://www.chess.com"]

[Event "Titled Tuesday Blitz January 31 Early 2023"]
[White "Csonka, Balazs"]
[Black "Khamdamova, Afruza"]
[WhiteFideId "742910"]
[BlackFideId "14210444"]
[WhiteElo "2496"]
[BlackElo "2162"]
[Result "1-0"]
[Round "03"]
[TimeControl "180+2"]
[Date "2023.01.31"]
[WhiteClock "0:00:59"]
[BlackClock "0:00:57"]

1. e4 {[%clk 0:03:00]}  e5 {[%clk 0:02:59]} 2. Nf3 {[%clk 0:02:59]}  Nf6 {[%clk 0:02:57]} 3. Nxe5 {[%clk 0:02:52]}  d6 {[%clk 0:02:58]} 4. Nf3 {[%clk 0:02:51]}  Nxe4 {[%clk 0:02:58]} 5. Nc3 {[%clk 0:02:46]}  Nxc3 {[%clk 0:02:57]} 6. dxc3 {[%clk 0:02:47]}  Be7 {[%clk 0:02:57]} 7. Be3 {[%clk 0:02:45]}  Nc6 {[%clk 0:02:57]} 8. Qd2 {[%clk 0:02:42]}  Be6 {[%clk 0:02:57]} 9. h4 {[%clk 0:02:39]}  h6 {[%clk 0:02:56]} 10. O-O-O {[%clk 0:02:37]}  Qd7 {[%clk 0:02:56]} 11. Kb1 {[%clk 0:02:20]}  a6 {[%clk 0:02:56]} 12. Nd4 {[%clk 0:02:17]}  Nxd4 {[%clk 0:02:56]} 13. Bxd4 {[%clk 0:02:16]}  Rg8 {[%clk 0:02:52]} 14. g3 {[%clk 0:02:11]}  O-O-O {[%clk 0:02:51]} 15. Bg2 {[%clk 0:02:10]}  Kb8 {[%clk 0:02:39]} 16. Rhe1 {[%clk 0:02:05]}  g6 {[%clk 0:02:31]} 17. Qxh6 {[%clk 0:02:01]}  g5 {[%clk 0:02:22]} 18. hxg5 {[%clk 0:01:53]}  c5 {[%clk 0:02:21]} 19. Bf6 {[%clk 0:01:28]}  Bxf6 {[%clk 0:01:19]} 20. gxf6 {[%clk 0:01:28]}  Rg6 {[%clk 0:01:11]} 21. Qf4 {[%clk 0:01:27]}  Rg4 {[%clk 0:01:07]} 22. Qe3 {[%clk 0:01:14]}  Rg6 {[%clk 0:01:02]} 23. Qf4 {[%clk 0:01:10]}  Rg4 {[%clk 0:01:00]} 24. Qf3 {[%clk 0:01:03]}  Rg6 {[%clk 0:00:57]} 25. Rxd6 {[%clk 0:00:59]} 1-0


[Site "https://www.chess.com"]

[Event "Titled Tuesday Blitz January 31 Early 2023"]
[White "Yeritsyan, Hayk"]
[Black "UnknownMagician"]
[WhiteFideId "13307320"]
[WhiteElo "2241"]
[BlackElo "2681"]
[Result "1/2-1/2"]
[Round "03"]
[TimeControl "180+2"]
[Date "2023.01.31"]
[WhiteClock "0:00:14"]
[BlackClock "0:00:15"]

1. d4 {[%clk 0:03:00]}  d5 {[%clk 0:03:00]} 2. Nf3 {[%clk 0:02:58]}  c6 {[%clk 0:01:58]} 3. Bf4 {[%clk 0:02:52]}  Qb6 {[%clk 0:01:57]} 4. Qc1 {[%clk 0:02:52]}  Nf6 {[%clk 0:01:57]} 5. e3 {[%clk 0:02:52]}  Bf5 {[%clk 0:01:57]} 6. c4 {[%clk 0:02:50]}  e6 {[%clk 0:01:56]} 7. c5 {[%clk 0:02:47]}  Qa5+ {[%clk 0:01:55]} 8. Nbd2 {[%clk 0:02:17]}  Nbd7 {[%clk 0:01:53]} 9. a3 {[%clk 0:02:16]}  Nh5 {[%clk 0:01:50]} 10. b4 {[%clk 0:02:07]}  Qd8 {[%clk 0:01:51]} 11. Bg5 {[%clk 0:01:59]}  f6 {[%clk 0:01:50]} 12. Bh4 {[%clk 0:01:57]}  g5 {[%clk 0:01:49]} 13. Bg3 {[%clk 0:01:57]}  Be7 {[%clk 0:01:48]} 14. Be2 {[%clk 0:01:55]}  O-O {[%clk 0:01:45]} 15. O-O {[%clk 0:01:55]}  Qe8 {[%clk 0:01:30]} 16. Qc3 {[%clk 0:01:47]}  Nxg3 {[%clk 0:01:25]} 17. hxg3 {[%clk 0:01:40]}  Bg6 {[%clk 0:01:22]} 18. Bd3 {[%clk 0:01:36]}  e5 {[%clk 0:01:11]} 19. Bxg6 {[%clk 0:01:16]}  Qxg6 {[%clk 0:01:12]} 20. dxe5 {[%clk 0:01:06]}  fxe5 {[%clk 0:01:13]} 21. Nxe5 {[%clk 0:01:04]}  Qg7 {[%clk 0:01:13]} 22. f4 {[%clk 0:00:40]}  Bf6 {[%clk 0:01:13]} 23. Ndf3 {[%clk 0:00:33]}  Rae8 {[%clk 0:01:13]} 24. Rae1 {[%clk 0:00:22]}  Nxe5 {[%clk 0:01:00]} 25. Nxe5 {[%clk 0:00:18]}  Bxe5 {[%clk 0:01:01]} 26. fxe5 {[%clk 0:00:19]}  Rxf1+ {[%clk 0:01:00]} 27. Rxf1 {[%clk 0:00:19]}  Qxe5 {[%clk 0:01:00]} 28. Qxe5 {[%clk 0:00:18]}  Rxe5 {[%clk 0:01:01]} 29. Kf2 {[%clk 0:00:19]}  Re4 {[%clk 0:00:57]} 30. Rd1 {[%clk 0:00:19]}  Rc4 {[%clk 0:00:51]} 31. Rd3 {[%clk 0:00:16]}  Kf7 {[%clk 0:00:50]} 32. Kf3 {[%clk 0:00:17]}  h5 {[%clk 0:00:48]} 33. Rd4 {[%clk 0:00:13]}  Rc3 {[%clk 0:00:35]} 34. a4 {[%clk 0:00:12]}  Ke6 {[%clk 0:00:27]} 35. g4 {[%clk 0:00:12]}  h4 {[%clk 0:00:26]} 36. Rd1 {[%clk 0:00:09]}  Ke5 {[%clk 0:00:26]} 37. Rd4 {[%clk 0:00:09]}  Rc4 {[%clk 0:00:23]} 38. Rxc4 {[%clk 0:00:03]}  dxc4 {[%clk 0:00:24]} 39. Ke2 {[%clk 0:00:02]}  Ke4 {[%clk 0:00:24]} 40. Kd2 {[%clk 0:00:03]}  c3+ {[%clk 0:00:18]} 41. Kxc3 {[%clk 0:00:03]}  Kxe3 {[%clk 0:00:19]} 42. b5 {[%clk 0:00:04]}  Ke4 {[%clk 0:00:13]} 43. Kc4 {[%clk 0:00:04]}  Kf4 {[%clk 0:00:11]} 44. a5 {[%clk 0:00:04]}  a6 {[%clk 0:00:10]} 45. bxa6 {[%clk 0:00:04]}  bxa6 {[%clk 0:00:11]} 46. Kd4 {[%clk 0:00:05]}  Kg3 {[%clk 0:00:03]} 47. Ke5 {[%clk 0:00:05]}  Kxg2 {[%clk 0:00:04]} 48. Kd6 {[%clk 0:00:05]}  h3 {[%clk 0:00:05]} 49. Kxc6 {[%clk 0:00:06]}  h2 {[%clk 0:00:05]} 50. Kb6 {[%clk 0:00:07]}  h1=Q {[%clk 0:00:06]} 51. c6 {[%clk 0:00:08]}  Kg3 {[%clk 0:00:06]} 52. c7 {[%clk 0:00:08]}  Qc1 {[%clk 0:00:07]} 53. Kb7 {[%clk 0:00:08]}  Qb2+ {[%clk 0:00:07]} 54. Ka8 {[%clk 0:00:08]}  Qc3 {[%clk 0:00:07]} 55. Kb8 {[%clk 0:00:08]}  Qb4+ {[%clk 0:00:07]} 56. Ka8 {[%clk 0:00:08]}  Qc5 {[%clk 0:00:08]} 57. Kb8 {[%clk 0:00:08]}  Qd6 {[%clk 0:00:08]} 58. Ka8 {[%clk 0:00:07]}  Qc6+ {[%clk 0:00:07]} 59. Kb8 {[%clk 0:00:08]}  Kxg4 {[%clk 0:00:08]} 60. c8=Q+ {[%clk 0:00:07]}  Qxc8+ {[%clk 0:00:09]} 61. Kxc8 {[%clk 0:00:08]}  Kf4 {[%clk 0:00:09]} 62. Kb7 {[%clk 0:00:08]}  g4 {[%clk 0:00:10]} 63. Kxa6 {[%clk 0:00:09]}  g3 {[%clk 0:00:11]} 64. Kb7 {[%clk 0:00:10]}  g2 {[%clk 0:00:12]} 65. a6 {[%clk 0:00:11]}  g1=Q {[%clk 0:00:13]} 66. a7 {[%clk 0:00:12]}  Qb1+ {[%clk 0:00:14]} 67. Ka8 {[%clk 0:00:11]}  Qe4+ {[%clk 0:00:14]} 68. Kb8 {[%clk 0:00:12]}  Qb4+ {[%clk 0:00:14]} 69. Ka8 {[%clk 0:00:12]}  Qf8+ {[%clk 0:00:14]} 70. Kb7 {[%clk 0:00:12]}  Qe7+ {[%clk 0:00:14]} 71. Kb8 {[%clk 0:00:13]}  Qe8+ {[%clk 0:00:15]} 72. Kb7 {[%clk 0:00:13]}  Qd7+ {[%clk 0:00:15]} 73. Kb8 {[%clk 0:00:14]} 1/2-1/2


[Site "https://www.chess.com"]

[Event "Titled Tuesday Blitz January 31 Early 2023"]
[White "Guliev, Logman"]
[Black "Dehtiarov, Roman"]
[WhiteFideId "13400061"]
[BlackFideId "14186640"]
[WhiteElo "2250"]
[BlackElo "2289"]
[Result "1-0"]
[Round "03"]
[TimeControl "180+2"]
[Date "2023.01.31"]
[WhiteClock "0:01:19"]
[BlackClock "0:00:33"]

1. e4 {[%clk 0:03:00]}  e5 {[%clk 0:02:59]} 2. Nf3 {[%clk 0:03:00]}  Nc6 {[%clk 0:02:58]} 3. Bb5 {[%clk 0:03:00]}  a6 {[%clk 0:02:55]} 4. Ba4 {[%clk 0:03:00]}  Nf6 {[%clk 0:02:55]} 5. O-O {[%clk 0:03:00]}  Be7 {[%clk 0:02:49]} 6. Re1 {[%clk 0:02:59]}  b5 {[%clk 0:02:49]} 7. Bb3 {[%clk 0:03:00]}  O-O {[%clk 0:02:50]} 8. h3 {[%clk 0:02:59]}  d6 {[%clk 0:02:49]} 9. c3 {[%clk 0:02:59]}  Na5 {[%clk 0:02:49]} 10. Bc2 {[%clk 0:02:58]}  c5 {[%clk 0:02:48]} 11. d4 {[%clk 0:02:58]}  cxd4 {[%clk 0:02:47]} 12. cxd4 {[%clk 0:02:57]}  Nc6 {[%clk 0:02:47]} 13. a3 {[%clk 0:02:53]}  Bb7 {[%clk 0:02:46]} 14. Nc3 {[%clk 0:02:51]}  Rc8 {[%clk 0:02:46]} 15. Bg5 {[%clk 0:02:47]}  h6 {[%clk 0:02:43]} 16. Be3 {[%clk 0:02:38]}  exd4 {[%clk 0:02:35]} 17. Nxd4 {[%clk 0:02:38]}  Re8 {[%clk 0:02:33]} 18. Nf5 {[%clk 0:02:35]}  Bf8 {[%clk 0:02:32]} 19. Nd5 {[%clk 0:02:09]}  Nxd5 {[%clk 0:02:25]} 20. exd5 {[%clk 0:02:09]}  Ne5 {[%clk 0:02:24]} 21. Rc1 {[%clk 0:02:08]}  Qf6 {[%clk 0:02:23]} 22. Bb1 {[%clk 0:02:02]}  Rxc1 {[%clk 0:02:22]} 23. Qxc1 {[%clk 0:01:59]}  Bxd5 {[%clk 0:01:58]} 24. Bd4 {[%clk 0:01:59]}  Be6 {[%clk 0:01:44]} 25. Ng3 {[%clk 0:01:43]}  Nf3+ {[%clk 0:01:28]} 26. gxf3 {[%clk 0:01:43]}  Qxd4 {[%clk 0:01:29]} 27. Qc2 {[%clk 0:01:43]}  g6 {[%clk 0:01:27]} 28. Qc6 {[%clk 0:01:35]}  Rc8 {[%clk 0:01:24]} 29. Qb7 {[%clk 0:01:28]}  Bxh3 {[%clk 0:00:50]} 30. Bf5 {[%clk 0:01:20]}  Bxf5 {[%clk 0:00:33]} 31. Nxf5 {[%clk 0:01:19]} 1-0


[Site "https://www.chess.com"]

[Event "Titled Tuesday Blitz January 31 Early 2023"]
[White "Vagman, Roy"]
[Black "Samant Aditya S"]
[WhiteFideId "2828995"]
[BlackFideId "35080580"]
[WhiteElo "2273"]
[BlackElo "2501"]
[Result "1-0"]
[Round "03"]
[TimeControl "180+2"]
[Date "2023.01.31"]
[WhiteClock "0:00:05"]
[BlackClock "0:00:03"]

1. Nf3 {[%clk 0:03:00]}  d5 {[%clk 0:02:57]} 2. g3 {[%clk 0:03:01]}  c6 {[%clk 0:02:57]} 3. Bg2 {[%clk 0:03:00]}  Bg4 {[%clk 0:02:57]} 4. O-O {[%clk 0:03:01]}  Nd7 {[%clk 0:02:58]} 5. c4 {[%clk 0:02:56]}  e6 {[%clk 0:02:55]} 6. Nc3 {[%clk 0:02:53]}  Ngf6 {[%clk 0:02:43]} 7. d4 {[%clk 0:02:52]}  dxc4 {[%clk 0:02:35]} 8. Nd2 {[%clk 0:02:47]}  Nb6 {[%clk 0:02:31]} 9. h3 {[%clk 0:02:11]}  Bh5 {[%clk 0:02:31]} 10. g4 {[%clk 0:02:10]}  Bg6 {[%clk 0:02:31]} 11. Nf3 {[%clk 0:02:07]}  Bd6 {[%clk 0:02:20]} 12. Bg5 {[%clk 0:02:03]}  h6 {[%clk 0:02:14]} 13. Bh4 {[%clk 0:02:02]}  h5 {[%clk 0:02:03]} 14. g5 {[%clk 0:01:52]}  Nfd5 {[%clk 0:01:58]} 15. Re1 {[%clk 0:01:38]}  Nxc3 {[%clk 0:01:51]} 16. bxc3 {[%clk 0:01:39]}  Nd5 {[%clk 0:01:51]} 17. Qd2 {[%clk 0:01:35]}  Nf4 {[%clk 0:01:42]} 18. Bf1 {[%clk 0:01:12]}  Bf5 {[%clk 0:01:32]} 19. e4 {[%clk 0:00:53]}  Nxh3+ {[%clk 0:01:28]} 20. Bxh3 {[%clk 0:00:48]}  Bxh3 {[%clk 0:01:29]} 21. g6 {[%clk 0:00:40]}  Qd7 {[%clk 0:01:07]} 22. Ng5 {[%clk 0:00:36]}  e5 {[%clk 0:00:43]} 23. gxf7+ {[%clk 0:00:32]}  Kf8 {[%clk 0:00:43]} 24. f3 {[%clk 0:00:27]}  Be6 {[%clk 0:00:38]} 25. Rad1 {[%clk 0:00:16]}  Bxf7 {[%clk 0:00:34]} 26. Kg2 {[%clk 0:00:14]}  Qc7 {[%clk 0:00:26]} 27. dxe5 {[%clk 0:00:12]}  Bxe5 {[%clk 0:00:27]} 28. Rf1 {[%clk 0:00:10]}  Bf6 {[%clk 0:00:21]} 29. f4 {[%clk 0:00:09]}  Rd8 {[%clk 0:00:19]} 30. Qe3 {[%clk 0:00:08]}  Rxd1 {[%clk 0:00:14]} 31. Rxd1 {[%clk 0:00:09]}  Qc8 {[%clk 0:00:15]} 32. Qg3 {[%clk 0:00:06]}  Ke8 {[%clk 0:00:14]} 33. f5 {[%clk 0:00:06]}  b5 {[%clk 0:00:07]} 34. e5 {[%clk 0:00:07]}  Bd5+ {[%clk 0:00:04]} 35. Kh2 {[%clk 0:00:07]}  Bxg5 {[%clk 0:00:03]} 36. Qxg5 {[%clk 0:00:08]}  Qd7 {[%clk 0:00:04]} 37. e6 {[%clk 0:00:07]}  Qc7+ {[%clk 0:00:05]} 38. Bg3 {[%clk 0:00:08]}  Qe7 {[%clk 0:00:05]} 39. Qg6+ {[%clk 0:00:08]}  Kd8 {[%clk 0:00:06]} 40. Re1 {[%clk 0:00:04]}  Kc8 {[%clk 0:00:06]} 41. Rc1 {[%clk 0:00:02]}  Kb7 {[%clk 0:00:06]} 42. Re1 {[%clk 0:00:03]}  h4 {[%clk 0:00:07]} 43. Bf4 {[%clk 0:00:03]}  h3 {[%clk 0:00:07]} 44. Be5 {[%clk 0:00:02]}  Qh4 {[%clk 0:00:06]} 45. Qxg7+ {[%clk 0:00:03]}  Ka6 {[%clk 0:00:06]} 46. Qg3 {[%clk 0:00:02]}  Qh5 {[%clk 0:00:05]} 47. Bxh8 {[%clk 0:00:02]}  Qxf5 {[%clk 0:00:05]} 48. Bd4 {[%clk 0:00:02]}  Qc2+ {[%clk 0:00:05]} 49. Bf2 {[%clk 0:00:03]}  Qf5 {[%clk 0:00:02]} 50. e7 {[%clk 0:00:04]}  Bf7 {[%clk 0:00:03]} 51. e8=Q {[%clk 0:00:04]}  Bxe8 {[%clk 0:00:04]} 52. Rxe8 {[%clk 0:00:05]}  Qc2 {[%clk 0:00:04]} 53. Re1 {[%clk 0:00:05]}  Qf5 {[%clk 0:00:04]} 54. Rf1 {[%clk 0:00:05]}  Qc2 {[%clk 0:00:03]} 55. Qxh3 {[%clk 0:00:05]}  Qxf2+ {[%clk 0:00:03]} 56. Rxf2 {[%clk 0:00:05]} 1-0


[Site "https://www.chess.com"]

[Event "Titled Tuesday Blitz January 31 Early 2023"]
[White "Mirzoev, Azer"]
[Black "matenitian"]
[WhiteFideId "13400304"]
[WhiteElo "2416"]
[BlackElo "2434"]
[Result "1-0"]
[Round "03"]
[TimeControl "180+2"]
[Date "2023.01.31"]
[WhiteClock "0:01:26"]
[BlackClock "0:00:13"]

1. c4 {[%clk 0:03:00]}  e5 {[%clk 0:02:56]} 2. Nc3 {[%clk 0:02:59]}  Bb4 {[%clk 0:02:50]} 3. Nd5 {[%clk 0:02:58]}  Be7 {[%clk 0:02:50]} 4. Nf3 {[%clk 0:02:58]}  Nc6 {[%clk 0:02:49]} 5. e3 {[%clk 0:02:54]}  Nf6 {[%clk 0:02:48]} 6. Qc2 {[%clk 0:02:53]}  O-O {[%clk 0:02:45]} 7. a3 {[%clk 0:02:53]}  d6 {[%clk 0:02:34]} 8. Ng5 {[%clk 0:02:50]}  g6 {[%clk 0:02:24]} 9. Nxe7+ {[%clk 0:02:48]}  Qxe7 {[%clk 0:02:23]} 10. d3 {[%clk 0:02:47]}  Bf5 {[%clk 0:02:13]} 11. Ne4 {[%clk 0:02:46]}  Nxe4 {[%clk 0:02:00]} 12. dxe4 {[%clk 0:02:45]}  Be6 {[%clk 0:02:01]} 13. Bd3 {[%clk 0:02:38]}  a5 {[%clk 0:02:00]} 14. b3 {[%clk 0:02:37]}  Nb8 {[%clk 0:01:35]} 15. O-O {[%clk 0:02:34]}  Nd7 {[%clk 0:01:35]} 16. f4 {[%clk 0:02:34]}  f6 {[%clk 0:01:33]} 17. Bb2 {[%clk 0:02:28]}  Nc5 {[%clk 0:01:31]} 18. Be2 {[%clk 0:02:28]}  Bd7 {[%clk 0:01:28]} 19. Bf3 {[%clk 0:02:25]}  b6 {[%clk 0:01:20]} 20. Rae1 {[%clk 0:02:23]}  Bc6 {[%clk 0:01:17]} 21. b4 {[%clk 0:02:18]}  axb4 {[%clk 0:01:15]} 22. axb4 {[%clk 0:02:18]}  Ne6 {[%clk 0:01:03]} 23. Bg4 {[%clk 0:02:07]}  Ra2 {[%clk 0:00:59]} 24. Qb3 {[%clk 0:02:02]}  Rfa8 {[%clk 0:00:57]} 25. c5 {[%clk 0:01:55]}  Bd7 {[%clk 0:00:51]} 26. cxb6 {[%clk 0:01:52]}  cxb6 {[%clk 0:00:47]} 27. f5 {[%clk 0:01:50]}  gxf5 {[%clk 0:00:14]} 28. exf5 {[%clk 0:01:46]}  Qg7 {[%clk 0:00:15]} 29. h3 {[%clk 0:01:34]}  h5 {[%clk 0:00:13]} 30. Bf3 {[%clk 0:01:26]} 1-0


[Site "https://www.chess.com"]

[Event "Titled Tuesday Blitz January 31 Early 2023"]
[White "Leiva, Gianmarco"]
[Black "Rodriguez, Santiago"]
[WhiteFideId "3804399"]
[BlackFideId "3000591"]
[WhiteElo "2392"]
[BlackElo "2252"]
[Result "1-0"]
[Round "03"]
[TimeControl "180+2"]
[Date "2023.01.31"]
[WhiteClock "0:00:33"]
[BlackClock "0:00:56"]

1. e4 {[%clk 0:02:51]}  c5 {[%clk 0:02:53]} 2. Nf3 {[%clk 0:02:50]}  Nc6 {[%clk 0:02:53]} 3. Bb5 {[%clk 0:02:47]}  g6 {[%clk 0:02:52]} 4. O-O {[%clk 0:02:44]}  Bg7 {[%clk 0:02:52]} 5. Re1 {[%clk 0:02:37]}  Nf6 {[%clk 0:02:52]} 6. e5 {[%clk 0:02:31]}  Nd5 {[%clk 0:02:52]} 7. Bxc6 {[%clk 0:02:29]}  dxc6 {[%clk 0:02:51]} 8. d3 {[%clk 0:02:28]}  O-O {[%clk 0:02:50]} 9. Nbd2 {[%clk 0:02:27]}  b5 {[%clk 0:02:48]} 10. Ne4 {[%clk 0:02:27]}  c4 {[%clk 0:02:48]} 11. d4 {[%clk 0:02:18]}  Bg4 {[%clk 0:02:36]} 12. h3 {[%clk 0:02:17]}  Bxf3 {[%clk 0:02:36]} 13. Qxf3 {[%clk 0:02:18]}  Nb4 {[%clk 0:02:34]} 14. Qd1 {[%clk 0:02:08]}  f5 {[%clk 0:02:27]} 15. Nc5 {[%clk 0:02:06]}  Qc8 {[%clk 0:02:09]} 16. c3 {[%clk 0:01:42]}  Nd5 {[%clk 0:02:07]} 17. e6 {[%clk 0:01:42]}  f4 {[%clk 0:01:58]} 18. Qf3 {[%clk 0:01:39]}  Qc7 {[%clk 0:01:48]} 19. Bd2 {[%clk 0:01:36]}  a5 {[%clk 0:01:47]} 20. b3 {[%clk 0:01:13]}  Rf5 {[%clk 0:01:32]} 21. bxc4 {[%clk 0:01:11]}  bxc4 {[%clk 0:01:33]} 22. Rab1 {[%clk 0:01:09]}  Raf8 {[%clk 0:01:20]} 23. Rb7 {[%clk 0:01:04]}  Qd8 {[%clk 0:01:14]} 24. Nd7 {[%clk 0:00:35]}  Re8 {[%clk 0:01:08]} 25. Reb1 {[%clk 0:00:34]}  Nf6 {[%clk 0:01:03]} 26. Rb8 {[%clk 0:00:33]}  Qc7 {[%clk 0:00:56]} 27. Nxf6+ {[%clk 0:00:33]} 1-0


[Site "https://www.chess.com"]

[Event "Titled Tuesday Blitz January 31 Early 2023"]
[White "Atakhan, Abtin"]
[Black "Fernandez Garcia, Gumersindo"]
[WhiteFideId "22502203"]
[BlackFideId "24516740"]
[WhiteElo "2422"]
[BlackElo "2160"]
[Result "1-0"]
[Round "03"]
[TimeControl "180+2"]
[Date "2023.01.31"]
[WhiteClock "0:01:08"]
[BlackClock "0:00:14"]

1. d4 {[%clk 0:02:51]}  Nf6 {[%clk 0:02:58]} 2. c4 {[%clk 0:02:50]}  e6 {[%clk 0:02:58]} 3. Nf3 {[%clk 0:02:51]}  d5 {[%clk 0:02:56]} 4. Nc3 {[%clk 0:02:51]}  Be7 {[%clk 0:02:56]} 5. Bf4 {[%clk 0:02:48]}  O-O {[%clk 0:02:53]} 6. e3 {[%clk 0:02:48]}  c6 {[%clk 0:02:46]} 7. Rc1 {[%clk 0:02:46]}  Nbd7 {[%clk 0:02:31]} 8. cxd5 {[%clk 0:02:46]}  exd5 {[%clk 0:02:31]} 9. Bd3 {[%clk 0:02:46]}  h6 {[%clk 0:02:20]} 10. Qc2 {[%clk 0:02:46]}  Re8 {[%clk 0:02:19]} 11. h3 {[%clk 0:02:46]}  Nf8 {[%clk 0:02:19]} 12. O-O {[%clk 0:02:46]}  a5 {[%clk 0:02:16]} 13. a3 {[%clk 0:02:43]}  Bd6 {[%clk 0:02:10]} 14. Bxd6 {[%clk 0:02:42]}  Qxd6 {[%clk 0:02:10]} 15. Ne5 {[%clk 0:02:43]}  N6d7 {[%clk 0:02:00]} 16. Nf3 {[%clk 0:02:32]}  b5 {[%clk 0:01:47]} 17. Nb1 {[%clk 0:02:28]}  Bb7 {[%clk 0:01:46]} 18. Nbd2 {[%clk 0:02:29]}  Nb6 {[%clk 0:01:46]} 19. Nb3 {[%clk 0:02:23]}  Nc4 {[%clk 0:01:41]} 20. Nc5 {[%clk 0:02:22]}  Bc8 {[%clk 0:01:39]} 21. Rfe1 {[%clk 0:02:01]}  a4 {[%clk 0:01:36]} 22. Bxc4 {[%clk 0:01:56]}  dxc4 {[%clk 0:01:33]} 23. e4 {[%clk 0:01:54]}  Qf4 {[%clk 0:01:27]} 24. Qc3 {[%clk 0:01:50]}  Ng6 {[%clk 0:01:24]} 25. Re3 {[%clk 0:01:47]}  Ra7 {[%clk 0:01:09]} 26. Rce1 {[%clk 0:01:45]}  Rae7 {[%clk 0:01:09]} 27. Nd2 {[%clk 0:01:27]}  Nh4 {[%clk 0:00:53]} 28. g3 {[%clk 0:01:25]}  Qg5 {[%clk 0:00:54]} 29. f4 {[%clk 0:01:25]}  Qg6 {[%clk 0:00:54]} 30. Kh2 {[%clk 0:01:24]}  Qh5 {[%clk 0:00:36]} 31. gxh4 {[%clk 0:01:21]}  Qxh4 {[%clk 0:00:37]} 32. Rf1 {[%clk 0:01:13]}  g5 {[%clk 0:00:19]} 33. Rg3 {[%clk 0:01:12]}  Kh7 {[%clk 0:00:16]} 34. fxg5 {[%clk 0:01:09]}  hxg5 {[%clk 0:00:17]} 35. Nf3 {[%clk 0:01:09]}  Qf4 {[%clk 0:00:14]} 36. Nxg5+ {[%clk 0:01:08]} 1-0


[Site "https://www.chess.com"]